fUSD/lending_fUSD_20250417
["ID","MTS","AMOUNT","RATE_DAILY","PERIOD"]
[358253434,1744876332025,-1488.96,0.00052876,120]
[358253435,1744876332035,-2888.97,0.00052876,120]
[358253436,1744876332044,-500.0,0.00052876,120]
[358253437,1744876332054,-605.83,0.00052876,120]
[358253438,1744876332064,-570.18,0.00052876,120]
[358253439,1744876332073,-722.72,0.00052876,120]
[358253440,1744876332082,-754.15,0.00052876,120]
[358253441,1744876332092,-1214.83,0.00052876,120]
[358253442,1744876332101,-500.0,0.00052876,120]
[358253443,1744876332111,-500.0,0.00052876,2]
[358253444,1744876332121,-1002.18,0.00052876,8]
[358253445,1744876332137,-1218.38,0.00052876,120]
[358253446,1744876332147,-1097.9,0.00052876,120]
[358253447,1744876332157,-500.0,0.00052876,120]
[358253448,1744876332169,-1622.19,0.00052876,120]
[358253449,1744876332179,-7361.74,0.00052876,120]
[358253450,1744876332188,-779.5,0.00052876,120]
[358253451,1744876332198,-2365.86,0.00052876,120]
[358253452,1744876332209,-650.0,0.00052912,10]
[358253453,1744876332220,-508.01,0.00052954,2]
[358253454,1744876332229,-523.15877128,0.0005296,60]
[358253455,1744876332239,-1068.0,0.00052999,30]
[358253456,1744876332249,-2244.5759356,0.00053,120]
[358253457,1744876332259,-466.68,0.00053,120]
[358253458,1744876332269,-12500.0,0.00053,10]
[358253459,1744876332279,-371.01851598,0.0005305,2]
[358253460,1744876332288,-312.45056856,0.0005305,2]
[358253461,1744876332298,-258.28722689,0.0005305,2]
[358253462,1744876332308,-11860.27852598,0.0005305,2]
[358253463,1744876332317,-2110.0,0.00053102,30]
[358253464,1744876332327,-500.0,0.0005315,120]
[358253465,1744876332338,-158.811424,0.0005315,120]
[358253466,1744876332348,-591.156374,0.0005315,120]
[358253467,1744876332357,-227.981738,0.0005315,120]
[358253468,1744876332368,-500.0,0.0005315,120]
[358253469,1744876332378,-1611.74,0.0005315,120]
[358253470,1744876332387,-772.09,0.0005315,120]
[358253471,1744876332396,-3077.05,0.0005315,120]
[358253472,1744876332406,-500.0,0.0005315,120]
[358253473,1744876332416,-376.67674393,0.0005315,120]
[358253474,1744876332425,-516.0,0.0005315,120]
[358253475,1744876332435,-825.74,0.0005315,120]
[358253476,1744876332443,-500.0,0.0005315,120]
[358253477,1744876332453,-500.0,0.0005315,120]
[358253478,1744876332462,-1329.86,0.0005315,120]
[358253479,1744876332471,-1041.46,0.0005315,120]
[358253480,1744876332480,-500.0,0.0005315,120]
[358253481,1744876332490,-995.71,0.0005315,120]
[358253482,1744876332499,-500.0,0.0005315,120]
[358253483,1744876332509,-561.46,0.0005315,30]
[358253484,1744876332519,-889.17,0.0005315,120]
[358253485,1744876332529,-1598.19,0.0005315,120]
[358253486,1744876332538,-2447.13,0.0005315,120]
[358253487,1744876332547,-934.81,0.0005315,120]
[358253488,1744876332557,-500.0,0.0005315,120]
[358253489,1744876332566,-558.88,0.0005315,120]
[358253490,1744876332576,-500.0,0.0005315,120]
[358253491,1744876332586,-120995.21,0.0005315,7]
[358253492,1744876332596,-500.0,0.0005315,120]
[358253493,1744876332606,-1597.3,0.0005315,120]
[358253494,1744876332615,-724.18,0.0005315,2]
[358253495,1744876332625,-500.0,0.0005315,120]
[358253496,1744876332634,-1073.23,0.0005315,120]
[358253497,1744876332643,-852.63,0.0005315,120]
[358253498,1744876332653,-9618.82,0.0005315,2]
[358253499,1744876332662,-207.07023961,0.0005315,120]
[358253500,1744876332671,-748.68,0.0005315,120]
[358253501,1744876332680,-507.6,0.0005315,120]
[358253502,1744876332690,-4167.06,0.0005315,120]
[358253503,1744876332699,-547.49,0.0005315,120]
[358253504,1744876332708,-762.47,0.0005315,120]
[358253505,1744876332718,-1761.11,0.0005315,120]
[358253506,1744876332728,-603.07,0.0005315,120]
[358253507,1744876332737,-677.96,0.0005315,120]
[358253508,1744876332747,-895.97,0.0005315,120]
[358253509,1744876332757,-2042.51,0.0005315,120]
[358253510,1744876332766,-2095.32,0.0005315,120]
[358253511,1744876332776,-500.0,0.0005315,120]
[358253512,1744876332785,-783.72,0.0005315,120]
[358253513,1744876332795,-568.82,0.0005315,120]
[358253514,1744876332805,-670.78,0.0005315,120]
[358253515,1744876332814,-1727.55,0.0005315,120]
[358253516,1744876332823,-500.0,0.0005315,120]
[358253517,1744876332833,-500.0,0.0005315,120]
[358253518,1744876332843,-1214.17,0.0005315,120]
[358253519,1744876332853,-500.0,0.0005315,120]
[358253520,1744876332862,-563.29,0.0005315,120]
[358253521,1744876332871,-765.17,0.0005315,120]
[358253522,1744876332880,-781.9,0.0005315,120]
[358253523,1744876332889,-2735.7,0.0005315,120]
[358253524,1744876332898,-2102.94,0.0005315,120]
[358253525,1744876332907,-500.0,0.0005315,120]
[358253526,1744876332917,-541.28,0.0005315,120]
[358253527,1744876332926,-524.96,0.0005315,120]
[358253528,1744876332936,-500.0,0.0005315,120]
[358253529,1744876332946,-776.69,0.0005315,120]
[358253530,1744876332955,-1055.54,0.0005315,120]
[358253531,1744876332964,-1656.3,0.0005315,120]
[358253532,1744876332974,-1158.21,0.0005315,35]
[358253533,1744876332985,-1489.79,0.0005315,120]
[358253534,1744876332994,-500.0,0.0005315,120]
[358253535,1744876333004,-500.0,0.0005315,120]
[358253536,1744876333013,-1223.23,0.0005315,120]
[358253537,1744876333023,-1296.94,0.0005315,120]
[358253538,1744876333033,-606.92,0.0005315,120]
[358253539,1744876333043,-500.0,0.0005315,120]
[358253540,1744876333052,-1176.7,0.0005315,120]
[358253541,1744876333062,-1628.14,0.0005315,120]
[358253542,1744876333071,-1112.64,0.0005315,120]
[358253543,1744876333081,-2221.31,0.0005315,120]
[358253544,1744876333090,-500.0,0.0005315,120]
[358253545,1744876333099,-500.0,0.0005315,120]
[358253546,1744876333108,-500.0,0.0005315,120]
[358253547,1744876333117,-530.74,0.0005315,120]
[358253548,1744876333130,-862.16,0.0005315,120]
[358253549,1744876333140,-1379.41,0.0005315,120]
[358253550,1744876333149,-507.47,0.0005315,120]
[358253551,1744876333159,-997.54,0.0005315,120]
[358253552,1744876333168,-500.0,0.0005315,120]
[358253553,1744876333178,-1247.38,0.0005315,120]
[358253554,1744876333187,-500.0,0.0005315,120]
[358253555,1744876333196,-519.16,0.0005315,120]
[358253556,1744876333207,-730.71,0.0005315,120]
[358253557,1744876333217,-946.46,0.0005315,120]
[358253558,1744876333227,-500.0,0.0005315,120]
[358253559,1744876333237,-578.64313095,0.0005315,120]
[358253560,1744876333246,-1007.48,0.0005315,120]
[358253561,1744876333255,-559.91,0.0005315,120]
[358253562,1744876333265,-1373.68,0.0005315,120]
[358253563,1744876333274,-940.05,0.0005315,120]
[358253564,1744876333283,-500.0,0.0005315,120]
[358253565,1744876333294,-1203.26,0.0005315,120]
[358253566,1744876333303,-825.67,0.0005315,120]
[358253567,1744876333313,-1575.92,0.0005315,120]
[358253568,1744876333323,-1004.58,0.0005315,120]
[358253569,1744876333332,-1167.01,0.0005315,120]
[358253570,1744876333342,-500.0,0.0005315,120]
[358253571,1744876333352,-701.01,0.0005315,120]
[358253572,1744876333363,-1323.83,0.0005315,120]
[358253573,1744876333373,-803.28,0.0005315,30]
[358253574,1744876333383,-507.89,0.0005315,120]
[358253575,1744876333392,-1748.54,0.0005315,120]
[358253576,1744876333403,-3514.34,0.0005315,120]
[358253577,1744876333412,-605.66453486,0.0005315,120]
[358253578,1744876333422,-1749.19,0.0005315,120]
[358253579,1744876333431,-1134.15,0.0005315,120]
[358253580,1744876333441,-500.0,0.0005315,120]
[358253581,1744876333451,-1157.9,0.0005315,120]
[358253582,1744876333461,-1115.45,0.0005315,120]
[358253583,1744876333470,-1269.95,0.0005315,120]
[358253584,1744876333480,-1020.0,0.0005315,120]
[358253585,1744876333489,-1129.1,0.0005315,120]
[358253586,1744876333499,-1581.24,0.0005315,120]
[358253587,1744876333508,-766.52,0.0005315,120]
[358253588,1744876333518,-683.59,0.0005315,120]
[358253589,1744876333527,-500.0,0.0005315,120]
[358253590,1744876333536,-500.0,0.0005315,120]
[358253591,1744876333546,-605.07,0.0005315,120]
[358253592,1744876333556,-1943.48,0.0005315,120]
[358253593,1744876333565,-500.0,0.0005315,120]
[358253594,1744876333574,-945.69,0.0005315,120]
[358253595,1744876333583,-1873.76,0.0005315,120]
[358253596,1744876333592,-500.0,0.0005315,120]
[358253597,1744876333602,-566.9,0.0005315,120]
[358253598,1744876333611,-536.75,0.0005315,120]
[358253599,1744876333620,-500.0,0.0005315,30]
[358253600,1744876333629,-1511.21,0.0005315,120]
[358253601,1744876333639,-2015.84,0.0005315,120]
[358253602,1744876333648,-500.0,0.0005315,120]
[358253603,1744876333658,-576.1,0.0005315,120]
[358253604,1744876333667,-500.0,0.0005315,120]
[358253605,1744876333676,-503.02,0.0005315,120]
[358253606,1744876333686,-1485.3,0.0005315,120]
[358253607,1744876333695,-616.82,0.0005315,120]
[358253608,1744876333704,-1889.42,0.0005315,120]
[358253609,1744876333713,-500.0,0.0005315,120]
[358253610,1744876333723,-521.54,0.0005315,120]
[358253611,1744876333732,-500.0,0.0005315,120]
[358253612,1744876333741,-1626.25,0.0005315,120]
[358253613,1744876333751,-1339.26,0.0005315,120]
[358253614,1744876333761,-1497.28,0.0005315,120]
[358253615,1744876333770,-1832.25,0.0005315,120]
[358253616,1744876333780,-630.84,0.0005315,120]
[358253617,1744876333791,-500.0,0.0005315,120]
[358253618,1744876333800,-615.64,0.0005315,120]
[358253619,1744876333809,-500.0,0.0005315,120]
[358253620,1744876333819,-692.24,0.0005315,120]
[358253621,1744876333828,-1231.98,0.0005315,120]
[358253622,1744876333837,-1043.32,0.0005315,120]
[358253623,1744876333847,-1684.61,0.0005315,120]
[358253624,1744876333856,-500.0,0.0005315,120]
[358253625,1744876333866,-500.0,0.0005315,120]
[358253626,1744876333875,-500.0,0.0005315,120]
[358253627,1744876333884,-668.2,0.0005315,120]
[358253628,1744876333895,-500.0,0.0005315,120]
[358253629,1744876333905,-500.0,0.0005315,120]
[358253630,1744876333915,-500.0,0.0005315,120]
[358253631,1744876333924,-864.39,0.0005315,120]
[358253632,1744876333933,-626.02,0.0005315,120]
[358253633,1744876333943,-1072.56,0.0005315,120]
[358253634,1744876333953,-1764.88,0.0005315,120]
[358253635,1744876333962,-500.0,0.0005315,120]
[358253636,1744876333971,-5640.62,0.0005315,120]
[358253637,1744876333981,-917.98,0.0005315,120]
[358253638,1744876333990,-1475.44,0.0005315,120]
[358253639,1744876334000,-1612.75,0.0005315,120]
[358253640,1744876334009,-500.0,0.0005315,120]
[358253641,1744876334019,-2211.01,0.0005315,120]
[358253642,1744876334028,-791.97,0.0005315,14]
[358253643,1744876334038,-1177.02,0.0005315,120]
[358253644,1744876334047,-1468.16,0.0005315,120]
[358253645,1744876334057,-1829.33,0.0005315,120]
[358253646,1744876334066,-500.0,0.0005315,120]
[358253647,1744876334075,-520.62,0.0005315,120]
[358253648,1744876334084,-500.0,0.0005315,120]
[358253649,1744876334094,-793.46,0.0005315,120]
[358253650,1744876334103,-500.0,0.0005315,120]
[358253651,1744876334112,-500.0,0.0005315,120]
[358253652,1744876334121,-1128.03,0.0005315,120]
[358253653,1744876334136,-500.0,0.0005315,120]
[358253654,1744876334145,-527.45,0.0005315,120]
[358253655,1744876334155,-500.0,0.0005315,120]
[358253656,1744876334165,-500.0,0.0005315,120]
[358253657,1744876334174,-674.54,0.0005315,120]
[358253658,1744876334183,-504.45,0.0005315,120]
[358253659,1744876334193,-500.0,0.0005315,120]
[358253660,1744876334202,-500.0,0.0005315,120]
[358253661,1744876334212,-498.46706133,0.0005315,120]
[358253662,1744876334222,-586.57,0.0005315,120]
[358253663,1744876334231,-495.15747306,0.0005315,120]
[358253664,1744876334240,-1036.71,0.0005315,120]
[358253665,1744876334249,-909.38,0.0005315,120]
[358253666,1744876334259,-500.0,0.0005315,120]
[358253667,1744876334268,-500.0,0.0005315,120]
[358253668,1744876334278,-1171.86,0.0005315,120]
[358253669,1744876334287,-2181.26,0.0005315,120]
[358253670,1744876334299,-500.0,0.0005315,120]
[358253671,1744876334309,-675.13,0.0005315,120]
[358253672,1744876334319,-616.15365436,0.0005315,120]
[358253673,1744876334329,-500.0,0.0005315,120]
[358253674,1744876334338,-500.0,0.0005315,120]
[358253675,1744876334348,-1081.53,0.0005315,120]
[358253676,1744876334358,-1595.7,0.0005315,120]
[358253677,1744876334369,-500.0,0.0005315,120]
[358253678,1744876334379,-1097.37,0.0005315,120]
[358253679,1744876334390,-500.0,0.0005315,120]
[358253680,1744876334399,-1093.79,0.0005315,120]
[358253681,1744876334409,-722.02,0.0005315,120]
[358253682,1744876334419,-978.59,0.0005315,120]
[358253683,1744876334429,-1836.63,0.0005315,120]
[358253684,1744876334612,-415.26636044,0.0005315,120]
[358253685,1744876334623,-500.0,0.0005315,120]
[358253686,1744876334633,-614.33,0.0005315,120]
[358253687,1744876334642,-1012.01,0.0005315,120]
[358253688,1744876334652,-2529.41,0.0005315,120]
[358253689,1744876334661,-1942.54,0.0005315,120]
[358253690,1744876334670,-500.0,0.0005315,120]
[358253691,1744876334680,-2464.72,0.0005315,120]
[358253692,1744876334690,-1110.2,0.0005315,120]
[358253693,1744876334700,-771.84,0.0005315,120]
[358253694,1744876334708,-1931.2,0.0005315,120]
[358253695,1744876334717,-500.0,0.0005315,120]
[358253696,1744876334727,-500.0,0.0005315,120]
[358253697,1744876334737,-676.22,0.0005315,120]
[358253698,1744876334746,-601.64,0.0005315,120]
[358253699,1744876334757,-500.0,0.0005315,120]
[358253700,1744876334766,-2027.54,0.0005315,120]
[358253701,1744876334776,-1731.61,0.0005315,120]
[358253702,1744876334786,-215.28473519,0.0005315,120]
[358253703,1744876334795,-506.42,0.0005315,120]
[358253704,1744876334804,-560.74,0.0005315,120]
[358253705,1744876334814,-500.0,0.0005315,120]
[358253706,1744876334823,-1571.6,0.0005315,120]
[358253707,1744876334833,-575.17,0.0005315,120]
[358253708,1744876334843,-500.0,0.0005315,120]
[358253709,1744876334852,-500.0,0.0005315,120]
[358253710,1744876334862,-1491.97,0.0005315,120]
[358253711,1744876334871,-500.0,0.0005315,120]
[358253712,1744876334882,-1061.2,0.0005315,120]
[358253713,1744876334892,-500.0,0.0005315,120]
[358253714,1744876334902,-500.0,0.0005315,120]
[358253715,1744876334911,-559.87,0.0005315,120]
[358253716,1744876334921,-1783.03,0.0005315,120]
[358253717,1744876334930,-500.0,0.0005315,120]
[358253718,1744876334940,-500.0,0.0005315,120]
[358253719,1744876334949,-1489.6,0.0005315,120]
[358253720,1744876334959,-3035.42,0.0005315,120]
[358253721,1744876334968,-2015.28,0.0005315,120]
[358253722,1744876334978,-1985.57,0.0005315,120]
[358253723,1744876334988,-835.38,0.0005315,120]
[358253724,1744876334998,-500.0,0.0005315,120]
[358253725,1744876335007,-843.17,0.0005315,120]
[358253726,1744876335017,-728.48,0.0005315,120]
[358253727,1744876335026,-2125.57,0.0005315,120]
[358253728,1744876335036,-506.65,0.0005315,120]
[358253729,1744876335046,-517.91,0.0005315,120]
[358253730,1744876335056,-531.0,0.0005315,120]
[358253731,1744876335065,-1110.06,0.0005315,120]
[358253732,1744876335075,-500.0,0.0005315,120]
[358253733,1744876335086,-3548.1,0.0005315,120]
[358253734,1744876335095,-887.03,0.0005315,120]
[358253735,1744876335104,-1073.22,0.0005315,120]
[358253736,1744876335114,-500.0,0.0005315,120]
[358253737,1744876335125,-313.31804609,0.0005315,120]
[358253738,1744876335138,-500.0,0.0005315,120]
[358253739,1744876335148,-1152.77,0.0005315,120]
[358253740,1744876335157,-500.0,0.0005315,120]
[358253741,1744876335167,-2168.54,0.0005315,120]
[358253742,1744876335178,-568.46,0.0005315,120]
[358253743,1744876335187,-500.0,0.0005315,120]
[358253744,1744876335197,-888.6,0.0005315,120]
[358253745,1744876335207,-1780.21,0.0005315,120]
[358253746,1744876335218,-979.12,0.0005315,120]
[358253747,1744876335227,-500.0,0.0005315,120]
[358253748,1744876335237,-2832.46,0.0005315,120]
[358253749,1744876335246,-1076.61,0.0005315,120]
[358253750,1744876335256,-518.93,0.0005315,120]
[358253751,1744876335266,-500.0,0.0005315,120]
[358253752,1744876335276,-500.0,0.0005315,120]
[358253753,1744876335286,-889.68,0.0005315,120]
[358253754,1744876335295,-3566.71,0.0005315,120]
[358253755,1744876335305,-1124.76,0.0005315,120]
[358253756,1744876335315,-1217.56,0.0005315,120]
[358253757,1744876335325,-1092.56,0.0005315,120]
[358253758,1744876335335,-1639.19,0.0005315,120]
[358253759,1744876335344,-500.0,0.0005315,120]
[358253760,1744876335355,-972.81,0.0005315,118]
[358253761,1744876335366,-1788.27,0.0005315,120]
[358253762,1744876335375,-861.37,0.0005315,120]
[358253763,1744876335385,-822.54,0.0005315,120]
[358253764,1744876335395,-500.0,0.0005315,120]
[358253765,1744876335405,-702.66,0.0005315,120]
[358253766,1744876335415,-1270.01,0.0005315,120]
[358253767,1744876335424,-909.8,0.0005315,120]
[358253768,1744876335433,-593.0,0.0005315,120]
[358253769,1744876335443,-753.51,0.0005315,120]
[358253770,1744876335452,-516.56,0.0005315,120]
[358253771,1744876335462,-973.47,0.0005315,120]
[358253772,1744876335472,-500.0,0.0005315,120]
[358253773,1744876335482,-2790.52,0.0005315,120]
[358253774,1744876335492,-500.0,0.0005315,120]
[358253775,1744876335502,-554.36,0.0005315,120]
[358253776,1744876335512,-555.93,0.0005315,120]
[358253777,1744876335522,-500.0,0.0005315,120]
[358253778,1744876335532,-1344.71,0.0005315,120]
[358253779,1744876335542,-1633.9,0.0005315,120]
[358253780,1744876335552,-1508.99,0.0005315,120]
[358253781,1744876335562,-801.2,0.0005315,120]
[358253782,1744876335571,-2484.07,0.0005315,120]
[358253783,1744876335581,-500.0,0.0005315,120]
[358253784,1744876335590,-3739.63,0.0005315,120]
[358253785,1744876335600,-605.98,0.0005315,120]
[358253786,1744876335609,-3141.6,0.0005315,120]
[358253787,1744876335619,-536.48,0.0005315,120]
[358253788,1744876335628,-1042.98,0.0005315,120]
[358253789,1744876335638,-1821.22,0.0005315,120]
[358253790,1744876335648,-1155.97,0.0005315,120]
[358253791,1744876335658,-500.0,0.0005315,120]
[358253792,1744876335667,-608.82,0.0005315,120]
[358253793,1744876335677,-1542.01,0.0005315,120]
[358253794,1744876335687,-500.0,0.0005315,120]
[358253795,1744876335697,-608.54,0.0005315,120]
[358253796,1744876335706,-1023.29,0.0005315,120]
[358253797,1744876335716,-505.15,0.0005315,120]
[358253798,1744876335725,-512.28,0.0005315,120]
[358253799,1744876335734,-996.12,0.0005315,120]
[358253800,1744876335744,-500.0,0.0005315,120]
[358253801,1744876335754,-821.03,0.0005315,120]
[358253802,1744876335764,-612.5253056,0.0005315,120]
[358253803,1744876335774,-533.51,0.0005315,120]
[358253804,1744876335784,-1488.96,0.0005315,120]
[358253805,1744876335793,-2888.97,0.0005315,120]
[358253806,1744876335804,-500.0,0.0005315,120]
[358253807,1744876335814,-605.83,0.0005315,120]
[358253808,1744876335823,-416.36294395,0.0005315,10]
[358253809,1744876335833,-570.18,0.0005315,120]
[358253810,1744876335843,-722.72,0.0005315,120]
[358253811,1744876335853,-754.15,0.0005315,120]
[358253812,1744876335862,-1214.83,0.0005315,120]
[358253813,1744876335872,-500.0,0.0005315,120]
[358253814,1744876335881,-478.07500482,0.0005315,2]
[358253815,1744876335891,-1002.18,0.0005315,8]
[358253816,1744876335901,-1218.38,0.0005315,120]
[358253817,1744876335910,-1097.9,0.0005315,120]
[358253818,1744876335920,-500.0,0.0005315,120]
[358253819,1744876335930,-1622.19,0.0005315,120]
[358253820,1744876335940,-7361.74,0.0005315,120]
[358253821,1744876335950,-779.5,0.0005315,120]
[358253822,1744876335960,-2365.86,0.0005315,120]
[358253823,1744876335971,-209.0,0.0005323,30]
[358253824,1744876335980,-700.0,0.0005337,7]
[358253825,1744876335990,-2000.0,0.000534,2]
[358253826,1744876336000,-500.0,0.00053424,120]
[358253827,1744876336010,-158.811424,0.00053424,120]
[358253828,1744876336020,-591.156374,0.00053424,120]
[358253829,1744876336030,-227.981738,0.00053424,120]
[358253830,1744876336040,-500.0,0.00053424,120]
[358253831,1744876336049,-1611.74,0.00053424,120]
[358253832,1744876336059,-772.09,0.00053424,120]
[358253833,1744876336069,-3077.05,0.00053424,120]
[358253834,1744876336078,-500.0,0.00053424,120]
[358253835,1744876336087,-516.0,0.00053424,120]
[358253836,1744876336096,-825.74,0.00053424,120]
[358253837,1744876336105,-500.0,0.00053424,120]
[358253838,1744876336115,-500.0,0.00053424,120]
[358253839,1744876336125,-1329.86,0.00053424,120]
[358253840,1744876336138,-1041.46,0.00053424,120]
[358253841,1744876336149,-481.76878083,0.00053424,120]
[358253842,1744876336159,-995.71,0.00053424,120]
[358253843,1744876336170,-500.0,0.00053424,120]
[358253844,1744876336182,-561.46,0.00053424,30]
[358253845,1744876336193,-889.17,0.00053424,120]
[358253846,1744876336204,-1598.19,0.00053424,120]
[358253847,1744876336214,-2447.13,0.00053424,120]
[358253848,1744876336223,-934.81,0.00053424,120]
[358253849,1744876336233,-500.0,0.00053424,120]
[358253850,1744876336243,-558.88,0.00053424,120]
[358253851,1744876336253,-500.0,0.00053424,120]
[358253852,1744876336263,-120995.21,0.00053424,7]
[358253853,1744876336273,-500.0,0.00053424,120]
[358253854,1744876336283,-1597.3,0.00053424,120]
[358253855,1744876336293,-724.18,0.00053424,2]
[358253856,1744876336303,-500.0,0.00053424,120]
[358253857,1744876336313,-1073.23,0.00053424,120]
[358253858,1744876336324,-852.63,0.00053424,120]
[358253859,1744876336334,-9618.82,0.00053424,2]
[358253860,1744876336344,-748.68,0.00053424,120]
[358253861,1744876336354,-507.6,0.00053424,120]
[358253862,1744876336367,-4167.06,0.00053424,120]
[358253863,1744876336377,-547.49,0.00053424,120]
[358253864,1744876336387,-762.47,0.00053424,120]
[358253865,1744876336397,-1761.11,0.00053424,120]
[358253866,1744876336406,-603.07,0.00053424,120]
[358253867,1744876336416,-677.96,0.00053424,120]
[358253868,1744876336426,-895.97,0.00053424,120]
[358253869,1744876336436,-2042.51,0.00053424,120]
[358253870,1744876336446,-2095.32,0.00053424,120]
[358253871,1744876336456,-206.88331683,0.00053424,120]
[358253872,1744876336466,-783.72,0.00053424,120]
[358253873,1744876336476,-568.82,0.00053424,120]
[358253874,1744876336486,-670.78,0.00053424,120]
[358253875,1744876336495,-1727.55,0.00053424,120]
[358253876,1744876336505,-500.0,0.00053424,120]
[358253877,1744876336515,-500.0,0.00053424,120]
[358253878,1744876336525,-1214.17,0.00053424,120]
[358253879,1744876336534,-500.0,0.00053424,120]
[358253880,1744876336544,-500.0,0.00053424,30]
[358253881,1744876336553,-563.29,0.00053424,120]
[358253882,1744876336562,-765.17,0.00053424,120]
[358253883,1744876336571,-781.9,0.00053424,120]
[358253884,1744876336581,-2735.7,0.00053424,120]
[358253885,1744876336591,-2102.94,0.00053424,120]
[358253886,1744876336600,-500.0,0.00053424,120]
[358253887,1744876336609,-541.28,0.00053424,120]
[358253888,1744876336619,-524.96,0.00053424,120]
[358253889,1744876336628,-500.0,0.00053424,120]
[358253890,1744876336638,-776.69,0.00053424,120]
[358253891,1744876336647,-1055.54,0.00053424,120]
[358253892,1744876336657,-1656.3,0.00053424,120]
[358253893,1744876336667,-1158.21,0.00053424,35]
[358253894,1744876336676,-1489.79,0.00053424,120]
[358253895,1744876336686,-500.0,0.00053424,120]
[358253896,1744876336695,-189.00577787,0.00053424,120]
[358253897,1744876336705,-1223.23,0.00053424,120]
[358253898,1744876336715,-1296.94,0.00053424,120]
[358253899,1744876336724,-606.92,0.00053424,120]
[358253900,1744876336733,-500.0,0.00053424,120]
[358253901,1744876336743,-1176.7,0.00053424,120]
[358253902,1744876336753,-1628.14,0.00053424,120]
[358253903,1744876336763,-1112.64,0.00053424,120]
[358253904,1744876336777,-2221.31,0.00053424,120]
[358253905,1744876336789,-500.0,0.00053424,120]
[358253906,1744876336801,-500.0,0.00053424,120]
[358253907,1744876336811,-500.0,0.00053424,120]
[358253908,1744876336821,-530.74,0.00053424,120]
[358253909,1744876336833,-862.16,0.00053424,120]
[358253910,1744876336844,-1379.41,0.00053424,120]
[358253911,1744876336854,-507.47,0.00053424,120]
[358253912,1744876336864,-997.54,0.00053424,120]
[358253913,1744876336875,-500.0,0.00053424,120]
[358253914,1744876336885,-1247.38,0.00053424,120]
[358253915,1744876336895,-500.0,0.00053424,120]
[358253916,1744876336905,-519.16,0.00053424,120]
[358253917,1744876336914,-730.71,0.00053424,120]
[358253918,1744876336925,-946.46,0.00053424,120]
[358253919,1744876336934,-500.0,0.00053424,120]
[358253920,1744876336944,-1007.48,0.00053424,120]
[358253921,1744876336954,-559.91,0.00053424,120]
[358253922,1744876336963,-1373.68,0.00053424,120]
[358253923,1744876336972,-940.05,0.00053424,120]
[358253924,1744876336982,-292.39808563,0.00053424,120]
[358253925,1744876336991,-1203.26,0.00053424,120]
[358253926,1744876337001,-825.67,0.00053424,120]
[358253927,1744876337010,-1575.92,0.00053424,120]
[358253928,1744876337023,-1004.58,0.00053424,120]
[358253929,1744876337033,-1167.01,0.00053424,120]
[358253930,1744876337043,-457.66752291,0.00053424,120]
[358253931,1744876337052,-701.01,0.00053424,120]
[358253932,1744876337061,-1323.83,0.00053424,120]
[358253933,1744876337071,-803.28,0.00053424,30]